bitfinex/quotes_SOLUSD_20241101
["timestamp","ask_amount","ask_price","bid_price","bid_amount"]
[1730464569268,5.9242,168.8,168.77,26.93732919]
[1730464569569,32.86152919,168.8,168.75,26.93732919]
[1730464569766,5.9242,168.8,168.77,26.93732919]
[1730464570072,26.93732919,168.79,168.74,26.93732919]
[1730464570253,26.93732919,168.78,168.73,26.93732919]
[1730464570588,5.9242,168.8,168.71,21.2412]
[1730464570589,26.93732919,168.77,168.72,26.93732919]
[1730464570867,26.93732919,168.75,168.7,26.93732919]
[1730464571104,23.776884,168.79,168.68,26.93732919]
[1730464571105,26.93732919,168.74,168.68,26.93732919]
[1730464571369,26.93732919,168.73,168.68,26.93732919]
[1730464571564,26.93732919,168.76,168.71,26.93732919]
[1730464571772,23.776884,168.79,168.7,26.93732919]
[1730464572074,23.776884,168.79,168.68,5.9281]
[1730464572251,26.93732919,168.75,168.68,5.9281]
[1730464572452,23.776884,168.79,168.68,20.749]
[1730464572654,29.701484,168.79,168.68,20.749]
[1730464572978,5.9246,168.79,168.68,20.749]
[1730464573269,26.93732919,168.88,168.68,20.749]
[1730464573270,26.93732919,168.88,168.69,23.776884]
[1730464573444,26.93732919,168.81,168.75,26.93732919]
[1730464573869,26.93732919,168.81,168.76,26.93732919]
[1730464574068,26.93732919,168.82,168.76,26.93732919]
[1730464574254,26.93732919,168.82,168.77,26.93732919]
[1730464574459,26.93732919,168.82,168.76,26.93732919]
[1730464574855,26.93732919,168.81,168.76,26.93732919]
[1730464576075,50.71421319,168.82,168.76,26.93732919]
[1730464576371,26.93732919,168.81,168.76,26.93732919]
[1730464576575,32.86112919,168.81,168.76,26.93732919]
[1730464577059,5.9238,168.81,168.77,26.93732919]
[1730464577247,5.9238,168.81,168.78,26.93732919]
[1730464578563,5.9234,168.82,168.78,26.93732919]
[1730464579152,5.9234,168.82,168.8,26.93732919]
[1730464579351,5.9234,168.82,168.77,26.93732919]
[1730464579752,5.9234,168.82,168.78,26.93732919]
[1730464579964,5.9234,168.82,168.77,26.93732919]
[1730464580364,32.86072919,168.82,168.76,26.93732919]
[1730464580571,32.86072919,168.82,168.77,26.93732919]
[1730464582876,26.93732919,168.81,168.76,26.93732919]
[1730464583384,32.86072919,168.82,168.77,26.93732919]
[1730464584354,26.93732919,168.81,168.76,26.93732919]
[1730464584886,32.86072919,168.82,168.77,26.93732919]
[1730464585180,5.9234,168.82,168.79,26.93732919]
[1730464585384,5.9224,168.85,168.81,26.93732919]
[1730464585563,47.66112919,168.89,168.84,26.93732919]
[1730464585766,32.85832919,168.89,168.84,26.93732919]
[1730464586780,32.85832919,168.89,168.83,26.93732919]
[1730464586781,26.93732919,168.88,168.83,26.93732919]
[1730464587987,5.9217,168.87,168.83,26.93732919]
[1730464590082,32.85902919,168.87,168.82,26.93732919]
[1730464590772,32.85902919,168.87,168.81,26.93732919]
[1730464591078,32.85902919,168.87,168.8,26.93732919]
[1730464591079,50.71421319,168.86,168.8,26.93732919]
[1730464591375,26.93732919,168.83,168.77,33.11412919]
[1730464591582,26.93732919,168.84,168.79,26.93732919]
[1730464592383,5.9231,168.83,168.79,26.93732919]
[1730464595563,26.93732919,168.85,168.79,26.93732919]
[1730464595769,26.93732919,168.83,168.78,26.93732919]
[1730464595979,26.93732919,168.83,168.77,33.11412919]
[1730464596182,26.93732919,168.83,168.77,26.93732919]
[1730464596572,16.87046981,168.83,168.78,16.87046981]
[1730464596975,23.776884,168.83,168.78,16.87046981]
[1730464597183,40.64735381,168.83,168.78,16.87046981]
[1730464597385,40.64735381,168.83,168.77,16.87046981]
[1730464597684,5.9234,168.82,168.77,16.87046981]
[1730464598082,5.9234,168.82,168.78,16.87046981]
[1730464598281,5.9234,168.82,168.77,16.87046981]
[1730464599189,16.87046981,168.84,168.79,16.87046981]
[1730464599488,31.67496981,168.87,168.82,16.87046981]
[1730464599784,31.67496981,168.87,168.76,35.9629]
[1730464599785,16.87046981,168.86,168.81,16.87046981]
[1730464599974,16.87046981,168.86,168.8,16.87046981]
[1730464600380,20.0,168.85,168.81,16.87046981]
[1730464601186,5.9227,168.84,168.82,16.87046981]
[1730464601389,22.79316981,168.84,168.79,16.87046981]
[1730464602277,36.87046981,168.85,168.8,16.87046981]
[1730464602470,5.9224,168.85,168.82,16.87046981]
[1730464602665,5.9219,168.87,168.83,16.87046981]
[1730464604065,22.79236981,168.87,168.82,16.87046981]
[1730464605390,22.79236981,168.87,168.83,16.87046981]
[1730464605575,5.9219,168.87,168.83,16.87046981]
[1730464605776,22.79236981,168.87,168.82,16.87046981]
[1730464606783,16.87046981,168.85,168.8,16.87046981]
[1730464607171,16.87046981,168.86,168.8,16.87046981]
[1730464607574,16.87046981,168.86,168.81,16.87046981]
[1730464607886,20.7261,168.87,168.82,16.87046981]
[1730464607887,22.79236981,168.87,168.82,16.87046981]
[1730464608394,22.79236981,168.87,168.81,16.87046981]
[1730464608395,16.87046981,168.86,168.81,16.87046981]
[1730464609087,16.87046981,168.86,168.79,14.8113]
[1730464609088,16.87046981,168.87,168.82,16.87046981]
[1730464609290,0.1822834,168.9,168.86,16.87046981]
[1730464609291,5.921,168.89,168.86,16.87046981]
[1730464609999,5.921,168.89,168.85,16.87046981]
[1730464610180,5.921,168.89,168.83,16.87046981]
[1730464610380,17.05275321,168.9,168.85,16.87046981]
[1730464610582,0.1822834,168.9,168.83,30.115984]
[1730464610775,0.1822834,168.9,168.85,23.776884]
[1730464611268,0.1822834,168.9,168.87,23.776884]
[1730464611991,0.1822834,168.9,168.89,40.64735381]
[1730464612192,0.1822834,168.9,168.89,23.11686981]
[1730464612492,0.1822834,168.9,168.89,33.19021877]
[1730464613393,0.1822834,168.9,168.89,39.11121877]
[1730464614393,0.1822834,168.9,168.89,59.11121877]
[1730464614585,0.1822834,168.9,168.89,82.88810277]
[1730464615085,0.1822834,168.9,168.89,84.07158402]
[1730464615280,0.1822834,168.9,168.89,82.88810277]
[1730464616187,6.1028834,168.9,168.87,1.18362287]
[1730464616390,6.1028834,168.9,168.85,6.86844238]
[1730464616391,26.94381877,168.89,168.85,6.86844238]
[1730464616593,26.94381877,168.88,168.84,15.0058]
[1730464616980,26.94381877,168.89,168.84,15.0058]
[1730464617184,26.94381877,168.89,168.84,41.94961877]
[1730464617384,27.12610217,168.9,168.85,32.86621877]
[1730464618305,26.94381877,168.89,168.84,41.94961877]
[1730464618484,26.94381877,168.89,168.84,47.87231877]
[1730464618994,26.94381877,168.87,168.84,15.0058]
[1730464619201,26.94381877,168.88,168.84,15.0058]
[1730464619503,26.94381877,168.88,168.83,26.94381877]
[1730464619684,26.94381877,168.86,168.82,21.1932]
[1730464620004,26.94381877,168.88,168.83,26.94381877]
[1730464620501,26.94381877,168.87,168.82,47.67501877]
[1730464621186,26.94381877,168.86,168.82,14.8078]
[1730464621388,26.94381877,168.85,168.8,48.91561877]
[1730464621597,26.94381877,168.87,168.82,26.94381877]
[1730464621805,26.94381877,168.88,168.83,26.94381877]
[1730464622109,26.94381877,168.87,168.82,26.94381877]
[1730464622401,26.94381877,168.88,168.83,32.86681877]
[1730464622603,26.94381877,168.89,168.83,47.67451877]
[1730464622790,26.94381877,168.88,168.83,47.67451877]
[1730464623402,26.94381877,168.86,168.83,14.8077]
[1730464623803,26.94381877,168.86,168.83,20.7308]
[1730464624105,6.1028834,168.9,168.83,47.67461877]
[1730464624106,26.94381877,168.88,168.83,47.67461877]
[1730464624409,33.04670217,168.9,168.85,26.94381877]
[1730464624607,27.12610217,168.9,168.85,47.67201877]
[1730464624788,0.1822834,168.9,168.86,26.94381877]
[1730464625406,26.94381877,168.88,168.85,20.7282]
[1730464625593,0.1822834,168.9,168.87,23.776884]
[1730464625795,0.1822834,168.9,168.89,23.776884]
[1730464626105,0.4,169.05,168.89,23.776884]
[1730464626106,5.916,169.04,168.91,23.776884]
[1730464626309,5.916,169.04,168.92,1.18336099]
[1730464626498,26.94381877,169.02,168.97,26.94381877]
[1730464626695,26.94381877,169.03,168.98,26.94381877]
[1730464627196,0.4,169.05,168.99,26.94381877]
[1730464627592,26.94381877,169.04,168.99,26.94381877]
[1730464627907,0.4,169.05,168.98,23.776884]
[1730464628109,0.4,169.05,169.04,26.94381877]
[1730464628284,0.4,169.05,169.04,50.72070277]
[1730464628483,0.4,169.05,169.04,89.74622154]
[1730464629205,0.6249713,169.07,169.04,80.75863754]
[1730464629388,0.6249713,169.07,169.06,26.94381877]
[1730464630606,0.6249713,169.07,169.06,32.85881877]
[1730464631589,0.6249713,169.07,169.06,26.94381877]
[1730464633708,0.6249713,169.07,169.05,26.94381877]
[1730464633908,0.6249713,169.07,169.06,26.94381877]
[1730464634818,0.6249713,169.07,169.06,32.85881877]
[1730464637409,5.9129,169.12,169.01,29.5838]
[1730464637617,32.85671877,169.12,169.07,26.94381877]
[1730464637830,26.94381877,169.11,169.06,26.94381877]
[1730464638007,26.94381877,169.09,169.04,26.94381877]
[1730464638209,26.94381877,169.1,169.05,26.94381877]
[1730464638401,5.9129,169.12,169.0,20.7099]
[1730464638402,5.9129,169.12,169.09,26.94381877]
[1730464638613,20.0,169.13,169.09,26.94381877]
[1730464639214,26.94381877,169.12,169.07,26.94381877]
[1730464639529,46.94381877,169.13,169.08,26.94381877]
[1730464639721,5.9129,169.12,169.08,26.94381877]
[1730464640433,25.9126,169.13,169.09,26.94381877]
[1730464640724,26.94381877,169.14,169.09,26.94381877]
[1730464640930,52.85591877,169.15,169.1,26.94381877]
[1730464641224,26.94381877,169.14,169.09,26.94381877]
[1730464641633,32.85591877,169.15,169.09,26.94381877]
[1730464641819,26.94381877,169.13,169.08,26.94381877]
[1730464642023,26.94381877,169.12,169.07,41.73021877]
[1730464642317,26.94381877,169.13,169.08,26.94381877]
[1730464643326,26.94381877,169.12,169.07,41.73021877]
[1730464643633,26.94381877,169.1,169.05,32.85921877]
[1730464643808,26.94381877,169.09,169.04,47.64881877]
[1730464644132,26.94381877,169.1,169.05,26.94381877]
[1730464644920,32.85741877,169.1,169.05,32.85911877]
[1730464645230,5.9136,169.1,169.06,26.94381877]
[1730464645429,26.94381877,169.09,169.04,41.73311877]
[1730464645618,26.94381877,169.08,169.04,14.7893]
[1730464645817,26.94381877,169.08,169.03,26.94381877]
[1730464646219,26.94381877,169.05,169.0,41.73591877]
[1730464646420,5.9136,169.1,169.0,41.73591877]
[1730464646421,26.94381877,169.04,169.0,20.7092]
[1730464646809,26.94381877,169.05,169.01,26.94381877]
[1730464647012,26.94381877,169.08,169.03,26.94381877]
[1730464647216,26.94381877,169.06,169.01,26.94381877]
[1730464647616,26.94381877,169.04,169.0,14.7921]
[1730464647823,26.94381877,169.05,169.0,41.73591877]
[1730464648021,26.94381877,169.05,169.0,47.65301877]
[1730464648216,26.94381877,169.05,169.0,20.7092]
[1730464648422,26.94381877,169.08,169.03,26.94381877]
[1730464648629,26.94381877,169.07,169.02,26.94381877]
[1730464648829,26.94381877,169.08,169.03,26.94381877]
[1730464649032,26.94381877,169.09,169.04,26.94381877]
[1730464649335,26.94381877,169.1,169.05,26.94381877]
[1730464649715,26.94381877,169.09,169.04,26.94381877]
[1730464650136,26.94381877,169.1,169.05,32.85891877]
[1730464650934,26.94381877,169.1,169.05,47.64741877]
[1730464651241,26.94381877,169.09,169.05,20.7036]
[1730464651430,26.94381877,169.11,169.06,26.94381877]
[1730464651634,26.94381877,169.16,169.1,26.94381877]
[1730464651819,43.48941877,169.18,169.1,26.94381877]
[1730464652018,26.94381877,169.18,169.13,26.94381877]
[1730464652231,5.9101,169.2,169.11,47.64001877]
[1730464652411,5.9101,169.2,169.11,20.6962]
[1730464652615,26.94381877,169.14,169.09,26.94381877]
[1730464653723,26.94381877,169.18,169.13,26.94381877]
[1730464654017,26.94381877,169.19,169.14,26.94381877]
[1730464654214,26.94381877,169.19,169.13,26.94381877]
[1730464654620,26.94381877,169.18,169.13,26.94381877]
[1730464655131,5.9091,169.23,169.14,26.94381877]
[1730464655336,26.94381877,169.19,169.14,26.94381877]
[1730464655549,26.94381877,169.19,169.13,26.94381877]
[1730464655831,26.94381877,169.18,169.14,20.6928]
[1730464656039,26.94381877,169.23,169.17,26.94381877]
[1730464656228,26.94381877,169.22,169.17,26.94381877]
[1730464656427,26.94381877,169.22,169.14,26.8229]
[1730464656641,26.94381877,169.21,169.16,26.94381877]
[1730464657142,26.94381877,169.22,169.16,26.94381877]
[1730464657336,26.94381877,169.22,169.17,26.94381877]
[1730464657936,6.5337713,169.24,169.14,41.72441877]
[1730464657937,26.94381877,169.2,169.14,41.72441877]
[1730464658255,26.94381877,169.2,169.15,26.94381877]
[1730464658420,26.94381877,169.21,169.15,26.94381877]
[1730464659229,26.94381877,169.17,169.12,26.94381877]
[1730464659423,26.94381877,169.16,169.12,26.94381877]
[1730464659727,26.94381877,169.21,169.15,26.94381877]
[1730464659934,26.94381877,169.21,169.16,26.94381877]
[1730464660713,26.94381877,169.22,169.16,26.94381877]
[1730464661123,26.94381877,169.21,169.15,26.94381877]
[1730464661327,26.94381877,169.22,169.16,26.94381877]
[1730464662038,26.94381877,169.22,169.17,26.94381877]
[1730464662738,32.85301877,169.23,169.17,26.94381877]
[1730464663720,26.94381877,169.23,169.17,32.85471877]
[1730464664339,27.56879007,169.24,169.18,26.94381877]
[1730464664530,27.56879007,169.24,169.19,26.94381877]
[1730464664718,27.56879007,169.24,169.17,20.6889]
[1730464664719,0.6249713,169.24,169.2,26.94381877]
[1730464664923,6.5336713,169.24,169.2,26.94381877]
[1730464665125,0.6249713,169.24,169.21,26.94381877]
[1730464665641,0.6249713,169.24,169.2,26.94381877]
[1730464666054,0.6249713,169.24,169.21,26.94381877]
[1730464666339,0.6249713,169.24,169.23,26.94381877]
[1730464666529,0.6249713,169.24,169.23,16.76739344]
[1730464668219,0.6249713,169.24,169.23,22.67649344]
[1730464668844,6.5336713,169.24,169.2,16.76739344]
[1730464669041,6.5336713,169.24,169.17,5.9109]
[1730464669042,0.6249713,169.24,169.22,16.76739344]
[1730464669236,0.6249713,169.24,169.23,16.76739344]
[1730464670144,0.6249713,169.24,169.21,16.76739344]
[1730464670445,0.6249713,169.24,169.22,16.76739344]
[1730464670745,0.6249713,169.24,169.2,26.84775089]
[1730464671442,27.47272219,169.24,169.19,26.84775089]
[1730464671630,0.6249713,169.24,169.21,26.84775089]
[1730464672353,0.6249713,169.24,169.2,26.84775089]
[1730464673048,0.6249713,169.24,169.18,20.6876]
[1730464673445,0.5549713,169.24,169.18,20.6876]
[1730464673629,0.5549713,169.24,169.19,1.47915708]
[1730464674037,0.5549713,169.24,169.22,26.84775089]
[1730464674235,0.5549713,169.24,169.21,26.84775089]
[1730464674945,0.5549713,169.24,169.19,20.6867]
[1730464674946,0.5549713,169.24,169.2,26.84775089]
[1730464675124,26.84775089,169.23,169.18,26.84775089]
[1730464675330,6.4637713,169.24,169.19,26.84775089]
[1730464675940,26.84775089,169.23,169.17,32.75895089]
[1730464676135,26.84775089,169.23,169.18,26.84775089]
[1730464676532,33.31152219,169.24,169.19,26.84775089]
[1730464676843,33.31152219,169.24,169.18,32.75845089]
[1730464677148,0.5549713,169.24,169.23,26.84775089]
[1730464677353,0.5549713,169.24,169.23,46.84775089]
[1730464678028,0.5549713,169.24,169.23,48.326434]
[1730464678558,0.5549713,169.24,169.23,54.23548067]
[1730464678723,0.5549713,169.24,169.23,55.41670098]
[1730464679251,0.5549713,169.24,169.23,101.25028498]
[1730464679465,0.5549713,169.24,169.23,77.47340098]
[1730464679839,0.5549713,169.24,169.23,56.29218067]
[1730464680541,0.5549713,169.24,169.23,34.23549334]
[1730464680860,0.5549713,169.24,169.23,26.84775089]
[1730464681335,0.5549713,169.24,169.22,41.62105089]
[1730464681653,0.5549713,169.24,169.23,26.84775089]
[1730464682131,0.5549713,169.24,169.22,47.53045089]
[1730464682547,0.5549713,169.24,169.23,26.84775089]
[1730464684553,26.84775089,169.3,169.24,56.1250557]
[1730464684749,15.1235,169.35,169.24,88.88130659]
[1730464684750,26.84775089,169.28,169.24,88.88130659]
[1730464685141,26.84775089,169.29,169.24,88.88130659]
[1730464686555,26.84775089,169.3,169.25,26.84775089]
[1730464686756,26.84775089,169.29,169.24,103.65320659]
[1730464687132,26.84775089,169.26,169.24,56.1250557]
[1730464687455,26.84775089,169.25,169.24,56.1250557]
[1730464687656,26.84775089,169.26,169.24,56.1250557]
[1730464687860,26.84775089,169.25,169.24,56.1250557]
[1730464688234,26.84775089,169.26,169.24,56.1250557]
[1730464688583,26.84775089,169.25,169.24,56.1250557]
[1730464689060,26.84775089,169.26,169.24,56.1250557]
[1730464689257,26.84775089,169.26,169.25,5.9084]
[1730464689434,26.84775089,169.29,169.24,82.97280659]
[1730464689642,26.84775089,169.27,169.25,14.771]
[1730464691239,15.1235,169.35,169.24,56.1250557]
[1730464691240,26.84775089,169.26,169.24,56.1250557]
[1730464691435,26.84775089,169.28,169.24,56.1250557]
[1730464691654,26.84775089,169.27,169.25,5.9084]
[1730464691852,26.84775089,169.27,169.24,62.0337557]
[1730464692662,16.77745674,169.27,169.24,62.0337557]
[1730464692858,16.77745674,169.27,169.24,56.1250557]
[1730464693059,16.77745674,169.26,169.24,56.1250557]
[1730464693256,16.77745674,169.27,169.24,56.1250557]
[1730464693560,20.6683,169.34,169.24,76.8055557]
[1730464693561,16.77745674,169.28,169.24,76.8055557]
[1730464693858,16.77745674,169.27,169.24,56.1250557]
[1730464694049,16.77745674,169.26,169.24,56.1250557]
[1730464694243,16.77745674,169.27,169.24,56.1250557]
[1730464694654,16.77745674,169.26,169.24,56.1250557]
[1730464694844,16.77745674,169.25,169.24,56.1250557]
[1730464695258,16.77745674,169.26,169.24,56.1250557]
[1730464695463,16.77745674,169.27,169.24,56.1250557]
[1730464696865,16.77745674,169.25,169.24,56.1250557]
[1730464697953,16.77745674,169.26,169.24,56.1250557]
[1730464699460,16.77745674,169.25,169.24,56.1250557]
[1730464700264,16.77745674,169.26,169.24,56.1250557]
[1730464700765,16.77745674,169.25,169.24,56.1250557]
[1730464703972,16.77745674,169.26,169.24,62.0337557]
[1730464704360,16.77745674,169.28,169.24,76.8056557]
[1730464707354,16.77745674,169.27,169.24,76.8056557]
[1730464708350,16.77745674,169.27,169.24,70.8969557]
[1730464708555,16.77745674,169.25,169.24,56.1250557]
[1730464709754,5.9074,169.28,169.24,56.1250557]
[1730464709755,16.77745674,169.26,169.24,56.1250557]
[1730464709952,16.77745674,169.25,169.24,56.1250557]
[1730464710880,16.77745674,169.3,169.24,78.81121244]
[1730464711060,16.77745674,169.3,169.25,16.77745674]
[1730464711264,16.77745674,169.28,169.24,62.0337557]
[1730464712076,16.77745674,169.29,169.24,93.58311244]
[1730464712263,16.77745674,169.31,169.25,18.25614844]
[1730464712459,16.77745674,169.29,169.25,16.77745674]
[1730464712863,16.77745674,169.3,169.25,16.77745674]
[1730464713076,16.77745674,169.3,169.27,5.9077]
[1730464714164,16.77745674,169.28,169.26,20.6775]
[1730464714483,16.77745674,169.27,169.24,62.0336557]
[1730464714779,16.77745674,169.26,169.24,56.1250557]
[1730464715361,16.77745674,169.26,169.24,62.0337557]
[1730464715774,16.77745674,169.26,169.24,56.1250557]
[1730464715968,22.68475674,169.28,169.24,56.1250557]
[1730464716869,16.77745674,169.27,169.24,56.1250557]
[1730464717070,16.77745674,169.26,169.24,56.1250557]
[1730464717271,22.68565674,169.26,169.24,56.1250557]
[1730464717471,16.77745674,169.26,169.24,56.1250557]
[1730464718567,22.99925674,169.29,169.24,78.81111244]
[1730464718769,28.90635674,169.29,169.24,78.81111244]
[1730464719089,16.77745674,169.27,169.24,56.1250557]
[1730464719588,23.776884,169.33,169.26,16.77745674]
[1730464719785,16.77745674,169.35,169.3,16.77745674]
[1730464719969,6.3689,169.37,169.25,50.2214]
[1730464720163,16.77745674,169.36,169.3,16.77745674]
[1730464720365,6.3689,169.37,169.27,1.47872307]
[1730464720558,12.2731,169.37,169.25,20.6794]
[1730464720759,12.2731,169.37,169.26,1.47865039]
[1730464720965,12.2731,169.37,169.25,20.6794]
[1730464721193,12.2731,169.37,169.26,1.4786403]
[1730464721482,16.77745674,169.32,169.26,16.77745674]
[1730464721659,16.77745674,169.32,169.27,5.9077]
[1730464722261,16.77745674,169.32,169.27,37.45445674]
[1730464722983,12.2731,169.37,169.27,37.45445674]
[1730464722984,16.77745674,169.33,169.28,18.25596413]
[1730464723191,16.77745674,169.34,169.29,18.25596413]
[1730464723375,16.77745674,169.34,169.3,5.9066]
[1730464723580,16.77745674,169.37,169.32,16.77745674]
[1730464723886,16.77745674,169.36,169.31,16.77745674]
[1730464724270,16.77745674,169.37,169.32,16.77745674]
[1730464724465,16.4605,169.39,169.3,20.6732]
[1730464724466,16.77745674,169.39,169.34,16.77745674]
[1730464724794,16.77745674,169.38,169.33,16.77745674]
[1730464725180,16.77745674,169.37,169.32,16.77745674]
[1730464725487,16.77745674,169.37,169.33,20.6696]
[1730464725677,16.77745674,169.38,169.33,37.44705674]
[1730464726118,16.77745674,169.34,169.31,5.9059]
[1730464726300,16.77745674,169.33,169.29,14.7668]
[1730464726596,16.77745674,169.35,169.3,18.25573952]
[1730464726882,16.77745674,169.37,169.32,16.77745674]
[1730464727472,16.77745674,169.37,169.33,20.6696]
[1730464727676,16.77745674,169.38,169.33,20.6696]
[1730464727876,16.77745674,169.37,169.33,20.6696]
[1730464728691,16.77745674,169.34,169.29,14.7668]
[1730464728996,16.77745674,169.31,169.29,14.7668]
[1730464729163,16.77745674,169.32,169.29,14.7668]
[1730464729366,16.77745674,169.33,169.29,14.7668]
[1730464729566,16.77745674,169.32,169.29,14.7668]
[1730464729792,16.77745674,169.31,169.29,14.7668]
[1730464730496,16.77745674,169.32,169.29,14.7668]
[1730464730692,16.77745674,169.34,169.29,31.54425674]
[1730464731074,16.77745674,169.33,169.29,14.7668]
[1730464731691,16.77745674,169.35,169.3,16.77745674]
[1730464731995,16.77745674,169.33,169.29,14.7668]
[1730464732400,16.77745674,169.32,169.29,14.7668]
[1730464733275,16.77745674,169.33,169.29,14.7668]
[1730464733488,16.77745674,169.35,169.3,16.77745674]
[1730464733693,16.77745674,169.34,169.29,31.54425674]
[1730464733884,16.77745674,169.33,169.29,14.7668]
[1730464734089,16.77745674,169.34,169.29,31.54425674]
[1730464734291,16.77745674,169.38,169.33,16.77745674]
[1730464734595,16.77745674,169.37,169.32,16.77745674]
[1730464735397,16.77745674,169.37,169.33,20.6696]
[1730464735600,16.77745674,169.38,169.33,37.44705674]
[1730464737205,16.77745674,169.4,169.34,16.77745674]
[1730464737495,16.77745674,169.35,169.31,5.9063]
[1730464737680,16.77745674,169.34,169.31,5.9063]
[1730464737881,16.77745674,169.34,169.3,14.7666]
[1730464738082,16.77745674,169.34,169.3,20.6732]
[1730464738686,16.77745674,169.35,169.3,37.45065674]
[1730464739698,16.77745674,169.36,169.31,16.77745674]
[1730464739908,16.77745674,169.37,169.32,16.77745674]
[1730464740091,16.77745674,169.36,169.31,16.77745674]
[1730464740300,16.77745674,169.37,169.32,16.77745674]
[1730464740498,16.77745674,169.38,169.32,16.77745674]
[1730464740999,16.77745674,169.37,169.32,16.77745674]
[1730464741796,16.77745674,169.37,169.33,5.9056]
[1730464742504,16.77745674,169.37,169.33,20.6696]
[1730464743685,16.77745674,169.36,169.31,16.77745674]
[1730464743886,16.77745674,169.38,169.33,16.77745674]
[1730464744290,16.77745674,169.37,169.32,16.77745674]
[1730464744503,16.77745674,169.38,169.33,16.77745674]
[1730464745007,0.6249713,169.41,169.28,16.77745674]
[1730464745008,16.77745674,169.4,169.35,16.77745674]
[1730464745385,16.77745674,169.39,169.34,16.77745674]
[1730464746792,16.77745674,169.38,169.33,23.16835674]
[1730464746993,22.68175674,169.37,169.32,16.77745674]
[1730464747196,16.77745674,169.36,169.31,37.44955674]
[1730464747406,16.77745674,169.35,169.31,37.44955674]
[1730464748236,16.77745674,169.36,169.31,37.44955674]
[1730464748687,15.3819713,169.41,169.32,16.77745674]
[1730464748688,16.77745674,169.37,169.32,16.77745674]
[1730464748889,16.77745674,169.39,169.34,16.77745674]
[1730464749098,15.77745674,169.39,169.34,16.77745674]
[1730464749300,16.77745674,169.4,169.35,16.77745674]
[1730464749494,16.77745674,169.39,169.34,16.77745674]
[1730464750219,0.6249713,169.41,169.37,16.77745674]
[1730464750425,0.6249713,169.41,169.4,16.77745674]
[1730464750597,0.6249713,169.41,169.4,22.68055674]
[1730464750790,0.6249713,169.41,169.36,14.7611]
[1730464750990,16.77745674,169.4,169.36,14.7611]
[1730464751197,0.6249713,169.41,169.34,5.9052]
[1730464751499,0.6249713,169.41,169.34,50.1946]
[1730464752106,16.77745674,169.4,169.35,16.77745674]
[1730464752804,16.77745674,169.4,169.36,5.9045]
[1730464753012,16.77745674,169.4,169.34,14.7631]
[1730464753013,16.77745674,169.39,169.34,31.54055674]
[1730464753317,17.40242804,169.41,169.36,16.77745674]
[1730464753688,0.6249713,169.41,169.37,16.77745674]
[1730464753889,17.40242804,169.41,169.36,16.77745674]
[1730464754818,16.77745674,169.4,169.35,37.44455674]
[1730464755218,17.40242804,169.41,169.36,16.77745674]
[1730464755427,0.6249713,169.41,169.37,16.77745674]
[1730464756994,0.6249713,169.41,169.35,20.6671]
[1730464756995,0.6249713,169.41,169.38,16.77745674]
[1730464757205,0.6249713,169.41,169.39,5.9035]
[1730464757602,0.6249713,169.41,169.37,37.44105674]
[1730464757825,0.6249713,169.41,169.38,16.77745674]
[1730464757996,0.6249713,169.41,169.37,37.44105674]
[1730464758192,17.40242804,169.41,169.37,20.6636]
[1730464758718,16.77745674,169.39,169.34,16.77745674]
[1730464758923,16.77745674,169.38,169.34,14.7629]
[1730464759109,16.77745674,169.39,169.34,31.54035674]
[1730464759315,16.77745674,169.4,169.35,16.77745674]
[1730464760099,16.77745674,169.38,169.34,20.6681]
[1730464760301,16.77745674,169.39,169.34,20.6681]
[1730464761004,16.77745674,169.39,169.34,37.44555674]
[1730464761322,16.77745674,169.38,169.34,20.6681]
[1730464762320,16.77745674,169.39,169.34,16.77745674]
[1730464762722,16.77745674,169.38,169.33,16.77745674]
[1730464762928,16.77745674,169.35,169.31,20.6721]
[1730464763127,16.77745674,169.34,169.31,14.7658]
[1730464763343,16.77745674,169.35,169.31,20.6721]
[1730464763517,16.77745674,169.34,169.31,20.6721]
[1730464764241,16.77745674,169.35,169.31,20.6721]
[1730464764404,16.77745674,169.36,169.31,37.44955674]
[1730464764609,16.77745674,169.35,169.31,20.6721]
[1730464765138,16.77745674,169.34,169.31,20.6721]
[1730464765440,16.77745674,169.34,169.31,14.7658]
[1730464765601,16.77745674,169.35,169.31,20.6721]
[1730464768326,16.77745674,169.34,169.31,20.6721]
[1730464768528,16.77745674,169.34,169.31,14.7658]
[1730464768715,16.77745674,169.34,169.31,20.6721]
[1730464769026,16.77745674,169.32,169.3,6.16295874]
[1730464769331,40.55434074,169.31,169.3,7.64115949]
[1730464769627,40.55434074,169.31,169.3,6.16295874]
[1730464770514,23.776884,169.3,169.27,1.47820075]
[1730464770821,16.77745674,169.28,169.26,7.38610075]
[1730464771144,16.77745674,169.27,169.26,1.47855814]
[1730464771433,16.77745674,169.27,169.25,14.7706]
[1730464771637,16.77745674,169.26,169.25,14.7706]
[1730464772003,16.77745674,169.26,169.25,1.47857121]
[1730464772240,23.776884,169.25,169.24,56.1250557]
[1730464772404,56.30414074,169.25,169.24,56.1250557]
[1730464772808,62.21254074,169.25,169.24,56.1250557]